Cogmind - Beta 15 @@@ ROGUE MODE // 2025.10.11 @ 10:37:06 Player: Jordan Result: Destroyed by P-70 Sage with Tesla Rifle Performance ------------- Evolutions (5) 2500 Regions Visited (8) 1600 Robots Destroyed (36) 180 Value Destroyed (728) 728 Prototype IDs (0) 0 Alien Tech Used (0) 0 Bonus (0) 0 TOTAL SCORE: 5008 Bonus ------- None Cogmind --------- Core Integrity 0/1000 Matter 30/300 Energy 99/100 System Corruption 1% Temperature Cool (0) Movement Core (50) Location -5/Factory Parts ------- > --- POWER (2) -------- (None) > --- PROPULSION (4) --- (None) > --- UTILITY (7) ------ (None) > --- WEAPON (4) ------- (None) > --- INVENTORY (5) ---- Field Propulsion Drive Improved Kinecellerator Phase Cannon Peak State ------------ > --- POWER ------------ (None) > --- PROPULSION ------- Field Propulsion Drive > --- UTILITY ---------- (None) > --- WEAPON ----------- Greatsword Greatsword > --- INVENTORY -------- Field Propulsion Drive Improved Kinecellerator Phase Cannon [Rating: 23] Favorites ----------- Power Light Deuterium Engine Engine Light Deuterium Engine Propulsion Flight Unit Treads Improved Treads Leg Aluminum Leg Wheel Compact Wheel Flight Unit Flight Unit Utility Improved Melee Analysis Suite Storage Small Storage Unit Processor Improved Melee Analysis Suite Protection Hardened Medium Armor Plating Weapon Grenade Launcher Energy Gun Small Laser Energy Cannon Proton Cannon Ballistic Gun Gauss Rifle Ballistic Cannon Assault Cannon Launcher Grenade Launcher Slashing Weapon Greatsword Build | -11 -10 -9 -8 -7 -6 -6 -6 -5 ------- Run | Yrd Mat Mat Mat Fac Fac Was Fac Fac Slots Evolved 10 | . . 2 2 2 2 . . 2 Power 1 | . . . . . . . . 1 Propulsion 2 | . . . 1 . 1 . . . Utility 5 | . . 2 1 . 1 . . 1 Weapon 2 | . . . . 2 . . . . Parts Attached 35 | 6 4 3 10 4 4 . . 4 Power 2 | 1 . . . . 1 . . . Engine 2 | 1 . . . . 1 . . . Core . | . . . . . . . . . Reactor . | . . . . . . . . . Propulsion 15 | 2 2 2 6 2 . . . 1 Treads 1 | . . . . 1 . . . . Leg 3 | . . . 3 . . . . . Wheel 2 | 2 . . . . . . . . Hover . | . . . . . . . . . Flight 9 | . 2 2 3 1 . . . 1 Utility 4 | 1 . . 1 . 2 . . . Device . | . . . . . . . . . Storage 1 | 1 . . . . . . . . Processor 2 | . . . . . 2 . . . Hackware . | . . . . . . . . . Protection 1 | . . . 1 . . . . . Artifact . | . . . . . . . . . Weapon 14 | 2 2 1 3 2 1 . . 3 Energy Gun 2 | 1 . . . 1 . . . . Energy Cannon 1 | . . . . . 1 . . . Ballistic Gun 2 | 1 . . . 1 . . . . Ballistic Cannon 3 | . . . 3 . . . . . Launcher 3 | . 2 1 . . . . . . Special Weapon . | . . . . . . . . . Impact Weapon . | . . . . . . . . . Slashing Weapon 3 | . . . . . . . . 3 Piercing Weapon . | . . . . . . . . . Special Melee Weapon . | . . . . . . . . . Unidentified Prototypes . | . . . . . . . . . Parts Lost 24 | . 1 3 5 9 . 2 . 4 Power . | . . . . . . . . . Propulsion 12 | . 1 2 3 5 . . . 1 Utility 2 | . . . 1 . . 1 . . Weapon 10 | . . 1 1 4 . 1 . 3 Highest Loss Streak 6 | . 1 3 3 6 . 1 . 3 To Critical Strikes 2 | . . . 1 1 . . . . Average Backups 3 | 2 4 3 3 4 5 3 4 3 Power . | . . . . . . . 1 . Propulsion . | . 1 . . . . . . . Utility 1 | . 1 1 1 1 2 2 2 1 Weapon 1 | . 1 2 2 2 3 1 1 1 Tool/Special . | . . . . . . . . . Unused Backups 12 | . 2 . . . 2 2 . 6 Power 1 | . . . . . . . . 1 Propulsion 3 | . 2 . . . . . . 1 Utility 3 | . . . . . . 1 . 2 Weapon 5 | . . . . . 2 1 . 2 Tool/Special . | . . . . . . . . . Average Slot Usage (%) 21 | . 52 20 32 13 18 15 . 2 Engine 2 | . 7 . . . 5 2 . . Leg 2 | . . . 12 . . . . . Wheel 1 | . 8 . . . . . . . Flight 4 | . 15 10 3 8 . . . 1 Processor 2 | . . . . . 8 10 . . Protection 1 | . . . 5 . . . . . Energy Gun 1 | . 6 . . . . . . . Ballistic Cannon 1 | . . . 8 3 . . . . Launcher 3 | . 14 10 3 . . . . . Peak Build Rating 23 | 5 5 3 14 12 18 18 1 23 Average Rating 6 | 3 3 1 7 5 12 11 1 4 On Entrance 4 | . 4 3 2 7 1 17 1 1 Naked Turns 401 | . . 9 27 66 8 42 30 219 Heaviest Build 18 | 4 6 3 18 10 13 13 . 10 Greatest Support 35 | 32 32 8 35 23 3 3 3 7 Greatest Overweight (x) 4 | . 1 . 2 1 4 4 . 1 Average Overweight (x) . | . . . . . 1 . . . Largest Inventory Capacity 8 | 8 5 5 8 5 5 5 5 5 Average Capacity 5 | 5 5 5 5 5 5 5 5 5 Most Carried 5 | 4 5 5 5 5 5 5 4 5 Average Carried 3 | 2 4 3 3 4 4 3 4 3 Final Capacity 5 | 5 5 5 5 5 5 5 5 5 Final Carried 5 | 4 5 3 5 5 3 4 4 3 Class Distribution -------------------- 95% | Mutant 4% | Sprinter Dominant Class ---------------- Mutant | -10/Materials Mutant | -9/Materials Mutant | -8/Materials Mutant | -7/Factory Mutant | -6/Factory Mutant | -6/Waste Mutant | -6/Factory Mutant | -5/Factory Resources | -11 -10 -9 -8 -7 -6 -6 -6 -5 ----------- Run | Yrd Mat Mat Mat Fac Fac Was Fac Fac Matter Collected 782 | 260 71 149 289 13 . . . . Remotely . | . . . . . . . . . Salvage Created 722 | 101 140 173 249 20 . . . 39 Parts 70 | 3 24 19 19 3 . . . 2 Haulers Intercepted 3 | . 1 1 1 . . . . . Recyclers Shooed 2 | . 1 . 1 . . . . . Parts Field Recycled . | . . . . . . . . . Retrieved Matter . | . . . . . . . . . Parts Self-Destructed . | . . . . . . . . . Prevented . | . . . . . . . . . Kills | -11 -10 -9 -8 -7 -6 -6 -6 -5 ------- Run | Yrd Mat Mat Mat Fac Fac Was Fac Fac Combat Hostiles Destroyed 17 | . 3 7 6 . . . . 1 Guns 3 | . 3 . . . . . . . Cannons 4 | . . . 4 . . . . . AOE 10 | . . 7 2 . . . . 1 Classes Destroyed 11 | 2 5 2 2 . . . . . Worker 2 | 1 1 . . . . . . . Builder 5 | . 2 . 3 . . . . . Tunneler 1 | . . . 1 . . . . . Hauler 3 | . 1 1 1 . . . . . Recycler 3 | 1 1 1 . . . . . . Operator 2 | . 1 . . 1 . . . . Watcher 3 | . 1 2 . . . . . . Swarmer 7 | . 3 4 . . . . . . Grunt 8 | . . 2 5 . . . . 1 Sentry 1 | . . 1 . . . . . . Hunter 1 | . . . 1 . . . . . Best Kill Streak 10 | 1 6 10 4 1 . . . 1 Combat Bots Only 7 | . 2 7 2 . . . . 1 Max Kills in Single Turn 2 | 1 2 2 2 1 . . . 1 Gunslinging . | . . . . . . . . . Exploded 2 | . . 2 1 . . . . 1 Melee . | . . . . . . . . . Uniques/NPCs Destroyed . | . . . . . . . . . Combat | -11 -10 -9 -8 -7 -6 -6 -6 -5 -------- Run | Yrd Mat Mat Mat Fac Fac Was Fac Fac Hostile Shots Fired 460 | . 29 29 132 155 . 2 . 113 Missed 190 | . 9 17 49 68 . . . 47 Hits 270 | . 20 12 83 87 . 2 . 66 Melee 6 | . . . . . . 2 . 4 Projectile 264 | . 20 12 83 87 . . . 62 Critical Strikes 11 | . . 2 3 3 . 2 . 1 Damage Taken 4550 | . 227 147 1323 1258 . 82 . 1513 Core 2346 | . 82 40 437 692 . 82 . 1013 Absorbed by Shields 24 | . . . . 24 . . . . Core Remaining (%) 61 | 100 67 90 20 1 . . 90 . Volleys Fired 85 | 6 20 12 36 7 . 4 . . Largest 2 | 1 2 1 2 1 . 1 . . Hottest 75 | 40 60 30 74 55 . 75 . . Shots Fired 117 | 6 28 12 59 7 1 4 . . Gun 24 | 6 11 . . 7 . . . . Cannon 55 | . . . 50 . 1 4 . . Launcher 38 | . 17 12 9 . . . . . Special . | . . . . . . . . . Kinetic 53 | . . . 50 3 . . . . Thermal 17 | 6 11 . . . . . . . Explosive 38 | . 17 12 9 . . . . . Electromagnetic 9 | . . . . 4 1 4 . . Robot Hit Streak 6 | 3 5 6 6 1 . 1 . . Robot Miss Streak 4 | 1 3 1 4 3 . 2 . . Penetration Max 1 | . . . . 1 . . . . Secondary Targets . | . . . . . . . . . Shots Hit Robots 54 | 4 8 2 32 2 . 2 . 4 Core Hits 75 | 3 18 18 26 2 . . . 8 Critical Kills . | . . . . . . . . . Critical Parts Destroyed . | . . . . . . . . . Critical Strikes 2 | . . . . . . . . 2 Sever 2 | . . . . . . . . 2 Melee Attacks 5 | . . . . . . . . 5 Impact . | . . . . . . . . . Slashing 5 | . . . . . . . . 5 Piercing . | . . . . . . . . . Sneak Attacks . | . . . . . . . . . Combat Hostiles . | . . . . . . . . . Follow-up Attacks . | . . . . . . . . . Damage Inflicted 2766 | 47 523 666 1228 71 . 4 . 227 Guns 164 | 47 66 . . 51 . . . . Cannons 718 | . . . 714 . . 4 . . Explosions 1633 | . 457 666 510 . . . . . Melee 194 | . . . . . . . . 194 Ramming 57 | . . . 4 20 . . . 33 Kinetic 748 | . . . 714 34 . . . . Thermal 113 | 47 66 . . . . . . . Explosive 1633 | . 457 666 510 . . . . . Electromagnetic 21 | . . . . 17 . 4 . . Impact . | . . . . . . . . . Slashing 194 | . . . . . . . . 194 Piercing . | . . . . . . . . . Highest Corruption 3 | . . . . 3 3 3 3 1 Average Corruption 2 | . . . . 1 3 3 3 1 Corruption Purged . | . . . . . . . . . Corruption Blocked . | . . . . . . . . . Effects 7 | . . . . . 2 4 1 . Message Errors 1 | . . . . . . . 1 . Matter Fused 1 | . . . . . . 1 . . Heat Flow Errors 1 | . . . . . 1 . . . Energy Discharges 1 | . . . . . . 1 . . Data Loss (minor) 1 | . . . . . . 1 . . Data Loss (major) 1 | . . . . . . 1 . . Misfires 1 | . . . . . 1 . . . Overload Shots . | . . . . . . . . . Overflow Damage 44 | . 15 26 3 . . . . . Projectiles . | . . . . . . . . . Explosions 44 | . 15 26 3 . . . . . Melee . | . . . . . . . . . Knockbacks 10 | . . . 10 . . . . . Impact 1 | . . . 1 . . . . . Kinetic 9 | . . . 9 . . . . . Secondary . | . . . . . . . . . Self-Inflicted Damage 120 | . 75 . 24 8 . . . 13 Shots 4 | . 3 . 1 . . . . . Rammed 24 | . . . . 10 . . . 14 Targets Rammed 25 | . . . 1 10 . . . 14 Kicked 1 | . . . 1 . . . . . Crushed . | . . . . . . . . . Highest Temperature 166 | . 24 16 91 . 166 12 . . Average Temperature 30 | . 13 6 33 . 68 9 . . Received Heat Transfer 795 | . . 84 270 6 . . . 435 Siege Activations . | . . . . . . . . . Martial Activations . | . . . . . . . . . Shielding Activations . | . . . . . . . . . Robots Disrupted . | . . . . . . . . . Combat Hostiles . | . . . . . . . . . Robots Corrupted . | . . . . . . . . . Combat Hostiles . | . . . . . . . . . Parts Fried . | . . . . . . . . . Impact Corruptions . | . . . . . . . . . Robots Melted . | . . . . . . . . . Combat Hostiles . | . . . . . . . . . Parts Melted 1 | . 1 . . . . . . . Heat Transferred 250 | 100 150 . . . . . . . Parts Sabotaged . | . . . . . . . . . Parts Stolen . | . . . . . . . . . Parts Stripped . | . . . . . . . . . Power Chain Reactions . | . . . . . . . . . Alert | -11 -10 -9 -8 -7 -6 -6 -6 -5 ------- Run | Yrd Mat Mat Mat Fac Fac Was Fac Fac Maximum Alert Level 1 | . . 1 . . . . . . Low Security (%) 97 | 100 100 44 100 100 100 100 100 100 Level 1 2 | . . 55 . . . . . . Level 2 . | . . . . . . . . . Level 3 . | . . . . . . . . . Level 4 . | . . . . . . . . . Level 5 . | . . . . . . . . . High Security . | . . . . . . . . . Max Security . | . . . . . . . . . Peak Influence 275 | 5 165 275 183 62 2 . . 135 Initial 115 | . 3 61 115 62 2 . . . Average 61 | . 82 183 146 16 . . . 56 Influence Increases 1117 | 10 245 284 243 65 . . . 270 Destroy 0b10 Robot/C 340 | . 60 140 120 . . . . 20 Destroy 0b10 Robot/NC 95 | 10 35 20 25 5 . . . . Destroy Leader 72 | . 14 26 22 . . . . 10 Disable Machine 75 | . 30 45 . . . . . . Destroy Structure 190 | . 91 53 46 . . . . . Partial Spotted 30 | . . . 15 15 . . . . Lose Combat Pursuer 315 | . 15 . 15 45 . . . 240 Influence Decreases 1017 | 5 105 154 380 198 5 . . 170 Entered New Map 325 | . 2 84 160 76 3 . . . Time Decay 505 | 5 93 40 170 65 2 . . 130 Lost Part 187 | . 10 30 50 57 . . . 40 Squads Dispatched 8 | . 1 . 3 1 1 . . 2 Investigation 1 | . 1 . . . . . . . Extermination 2 | . . . . . 1 . . 1 Reinforcement 5 | . . . 3 1 . . . 1 Assault . | . . . . . . . . . Garrison . | . . . . . . . . . Intercept . | . . . . . . . . . Searches Triggered . | . . . . . . . . . Construction Impeded 2 | . . . 2 . . . . . Haulers Reinforced . | . . . . . . . . . Active Scanning Responses . | . . . . . . . . . Cargo Convoy Interrupts . | . . . . . . . . . Stealth | -11 -10 -9 -8 -7 -6 -6 -6 -5 --------- Run | Yrd Mat Mat Mat Fac Fac Was Fac Fac Distress Signals 5 | . . . 2 1 . . . 2 Communications Jammed . | . . . . . . . . . Distress Signals . | . . . . . . . . . Times Spotted 81 | . 5 9 19 12 . 7 1 28 Peak Tracking Total 13 | . 3 4 12 7 . 6 1 13 Tactical Retreats 10 | . 1 . 1 3 . 1 . 4 Traps | -11 -10 -9 -8 -7 -6 -6 -6 -5 ------- Run | Yrd Mat Mat Mat Fac Fac Was Fac Fac Traps Triggered 4 | . 1 . . 1 2 . . . Indirectly . | . . . . . . . . . Trap Hack Attempts . | . . . . . . . . . Triggered . | . . . . . . . . . Disarmed . | . . . . . . . . . Reprogrammed . | . . . . . . . . . Reused . | . . . . . . . . . Traps Extracted . | . . . . . . . . . Installed . | . . . . . . . . . Triggered . | . . . . . . . . . Machines | -11 -10 -9 -8 -7 -6 -6 -6 -5 ---------- Run | Yrd Mat Mat Mat Fac Fac Was Fac Fac Machines Disabled 5 | . 2 3 . . . . . . Max in Single Turn 2 | . 1 2 . . . . . . Machines Repaired . | . . . . . . . . . Machines Dismantled . | . . . . . . . . . Machines Sabotaged . | . . . . . . . . . Overloaded Fab Kills . | . . . . . . . . . Hacking | -11 -10 -9 -8 -7 -6 -6 -6 -5 --------- Run | Yrd Mat Mat Mat Fac Fac Was Fac Fac Machines Accessed 2 | . 1 . . . 1 . . . Terminals 2 | . 1 . . . 1 . . . Fabricators . | . . . . . . . . . Repair Stations . | . . . . . . . . . Recycling Units . | . . . . . . . . . Scanalyzers . | . . . . . . . . . Garrison Access . | . . . . . . . . . Total Hacks 4 | . 2 . . . 2 . . . Successful 1 | . 1 . . . . . . . Failed 3 | . 1 . . . 2 . . . Catastrophic . | . . . . . . . . . Database Lockouts . | . . . . . . . . . Manual . | . . . . . . . . . Terminals 4 | . 2 . . . 2 . . . Fabricators . | . . . . . . . . . Repair Stations . | . . . . . . . . . Recycling Units . | . . . . . . . . . Scanalyzers . | . . . . . . . . . Garrison Access . | . . . . . . . . . Terminal Hacks 1 | . 1 . . . . . . . Emergency Access Points 1 | . 1 . . . . . . . Fabricator Hacks . | . . . . . . . . . Repair Station Hacks . | . . . . . . . . . Recycling Unit Hacks . | . . . . . . . . . Scanalyzer . | . . . . . . . . . Garrison Access Hacks . | . . . . . . . . . Unauthorized Hacks . | . . . . . . . . . Terminals . | . . . . . . . . . Fabricators . | . . . . . . . . . Repair Stations . | . . . . . . . . . Recycling Units . | . . . . . . . . . Scanalyzers . | . . . . . . . . . Garrison Access . | . . . . . . . . . Data Cores Recovered . | . . . . . . . . . Used . | . . . . . . . . . Hacking Detections 2 | . 1 . . . 1 . . . Full Trace Events . | . . . . . . . . . Feedback Events . | . . . . . . . . . Feedback Blocked . | . . . . . . . . . Robot Schematics Acquired . | . . . . . . . . . Robots Built . | . . . . . . . . . Authchips . | . . . . . . . . . Time . | . . . . . . . . . Total Robot Build Rating . | . . . . . . . . . Part Schematics Acquired . | . . . . . . . . . Parts Built . | . . . . . . . . . Authchips . | . . . . . . . . . Time . | . . . . . . . . . Total Part Build Rating . | . . . . . . . . . Parts Repaired . | . . . . . . . . . Time . | . . . . . . . . . Parts Recycled . | . . . . . . . . . Recycled Matter . | . . . . . . . . . Retrieved Matter . | . . . . . . . . . Retrieved Components . | . . . . . . . . . Parts Scanalyzed . | . . . . . . . . . Part Schematics Acquired . | . . . . . . . . . Parts Damaged . | . . . . . . . . . Bothacking | -11 -10 -9 -8 -7 -6 -6 -6 -5 ------------ Run | Yrd Mat Mat Mat Fac Fac Was Fac Fac Used RIF Installer . | . . . . . . . . . Robots Hacked . | . . . . . . . . . Non-combat . | . . . . . . . . . Combat . | . . . . . . . . . Robot Hacks Applied . | . . . . . . . . . Relay Couplers Released . | . . . . . . . . . Fabnet Peak Effective % . | . . . . . . . . . Robots Rewired . | . . . . . . . . . Allies Hacked . | . . . . . . . . . Hacks Repelled . | . . . . . . . . . Allies | -11 -10 -9 -8 -7 -6 -6 -6 -5 -------- Run | Yrd Mat Mat Mat Fac Fac Was Fac Fac Total Allies 1 | . . . . . . 1 . . Largest Group 1 | . . . . . . 1 . . Highest-Rated Group 31 | . . . . . . 31 . . Highest-Rated Ally 31 | . . . . . . 31 . . Total Orders . | . . . . . . . . . Ally Attacks 11 | . . . . . . 11 . . Total Damage 208 | . . . . . . 208 . . Kills . | . . . . . . . . . Allies Corrupted . | . . . . . . . . . Allies Melted . | . . . . . . . . . Intel | -11 -10 -9 -8 -7 -6 -6 -6 -5 ------- Run | Yrd Mat Mat Mat Fac Fac Was Fac Fac Active Infowar (turns) 246 | . . . . . 113 133 . . Optics 246 | . . . . . 113 133 . . Robot Analysis Total . | . . . . . . . . . Derelict Logs Recovered . | . . . . . . . . . Drone Launches . | . . . . . . . . . Drone Recoveries . | . . . . . . . . . Exploration | -11 -10 -9 -8 -7 -6 -6 -6 -5 ------------- Run | Yrd Mat Mat Mat Fac Fac Was Fac Fac Turns Passed 1826 | 111 255 97 341 207 267 175 30 343 Spaces Moved 2195 | 89 330 166 242 370 185 209 60 544 Core 1052 | 3 3 14 53 132 185 209 60 393 Treads 3 | . . . . 3 . . . . Legs 94 | . . . 94 . . . . . Wheels 148 | 86 62 . . . . . . . Hover . | . . . . . . . . . Flight 898 | . 265 152 95 235 . . . 151 Fastest Speed 29 | 50 37 37 29 29 50 50 50 45 Average Speed 66 | 98 59 40 90 42 141 77 50 49 Slowest Speed 250 | 100 120 50 200 160 250 250 50 125 Overloaded Moves . | . . . . . . . . . Propulsion Burnouts . | . . . . . . . . . Robots Hopped 8 | . . . . 2 . . . 6 Potential Cave-ins . | . . . . . . . . . Cave-ins Triggered . | . . . . . . . . . Exploration Rate (%) 22 | 5 48 20 17 12 4 78 2 16 Regions Visited 8 Branch Regions . Pre-discovered Areas . | . . . . . . . . . Known Exits Taken . | . . . . . . . . . Unknown Exits Taken 6 | 1 1 1 1 1 . . 1 . Scrap Searched . | . . . . . . . . . Spaces Dug 16 | . 16 . . . . . . . Terrain Destroyed 231 | . 98 67 66 . . . . . Melee . | . . . . . . . . . Projectile 8 | . . . 8 . . . . . AOE 223 | . 98 67 58 . . . . . Terrain Rammed . | . . . . . . . . . Walls Destroyed . | . . . . . . . . . Machines Disabled . | . . . . . . . . . Actions | -11 -10 -9 -8 -7 -6 -6 -6 -5 --------- Run | Yrd Mat Mat Mat Fac Fac Was Fac Fac Total 2428 | 104 361 182 305 406 191 217 59 603 Wait 34 | . . . . . . . . 34 Move 2173 | 88 329 165 241 365 185 208 59 533 Hop 7 | . . . . 2 . . . 5 Pick Up 15 | 2 1 . 3 2 . 3 . 4 Fast Attach 32 | 6 4 2 9 4 4 . . 3 Attach 8 | . . 1 4 2 . . . 1 Detach 12 | 2 3 . 7 . . . . . Swap . | . . . . . . . . . Drop 18 | . 4 2 4 . 2 2 . 4 Fire 85 | 6 20 12 36 7 . 4 . . Melee 5 | . . . . . . . . 5 Ram 21 | . . . . 7 . . . 14 Kick 1 | . . . 1 . . . . . Crush 3 | . . . . 3 . . . . Escape Stasis 14 | . . . . 14 . . . . Rewire . | . . . . . . . . . Trap . | . . . . . . . . . Miscellaneous . | . . . . . . . . . Route ------- -11/Scrapyard -10/Materials (discovered 2 exits: [*Mat x2]) -9/Materials -8/Materials -7/Factory -6/Factory -6/Waste -6/Factory -5/Factory History --------- Turn | Location | Event 6 | -11/Scrapyard | Discovered new exit (range 16) 112 | -11/Scrapyard | Entered Materials 311 | -10/Materials | Discovered new exit (range 13) 318 | -10/Materials | Build established: Mutant 342 | -10/Materials | Discovered new exit (range 15) 367 | -10/Materials | Entered another Materials area 367 | -9/Materials | Evolved 2 slots: Utility x2 457 | -9/Materials | Discovered new exit (range 16) 464 | -9/Materials | Entered another Materials area 464 | -8/Materials | Evolved 2 slots: Propulsion x1, Utility x1 465 | -8/Materials | Lost 3 parts (2n1w) 471 | -8/Materials | Destroyed 7 combat bots 769 | -8/Materials | Core integrity fell below 50% 786 | -8/Materials | Lost 3 parts (3n) 800 | -8/Materials | Discovered new exit (range 15) 805 | -8/Materials | Entered Factory 805 | -7/Factory | Evolved 2 slots: Weapon x2 894 | -7/Factory | Core integrity fell below 50% 923 | -7/Factory | Lost 6 parts (4n2w) 974 | -7/Factory | Core integrity fell below 20% 995 | -7/Factory | Discovered new exit (range 14) 1012 | -7/Factory | Entered another Factory area 1012 | -6/Factory | Evolved 2 slots: Propulsion x1, Utility x1 1279 | -6/Factory | Sucked down chute 1279 | -6/Factory | Entered Waste 1280 | -6/Waste | Met a frightened Derelict 1320 | -6/Waste | Spotted C-40 Crusher 1359 | -6/Waste | Crushed by Compactor (1 part destroyed, 1 dropped) 1371 | -6/Waste | Spotted C-40 Crusher 1381 | -6/Waste | Spotted C-40 Crusher 1382 | -6/Waste | Spotted C-40 Crusher 1386 | -6/Waste | Spotted C-40 Crusher 1406 | -6/Waste | Spotted C-40 Crusher 1410 | -6/Waste | Discovered new exit (range 12) 1412 | -6/Waste | Crushed by Compactor (1 part destroyed, 1 dropped) 1454 | -6/Waste | Entered Factory 1478 | -6/Factory | Discovered new exit (range 8) 1484 | -6/Factory | Entered another Factory area 1484 | -5/Factory | Evolved 2 slots: Power x1, Utility x1 1801 | -5/Factory | Core integrity fell below 50% 1816 | -5/Factory | Core integrity fell below 20% 1827 | -5/Factory | Destroyed by P-70 Sage with Tesla Rifle Last Messages --------------- 01706_ O-16 Technician: "IFF HANDSHAKE FAILED. SECURING TERMINAL." 01708_ ALERT: Potential suspicious activity detected, Programmers report to Factory Zone 4U. 01729_ ALERT: Hostiles spotted, dispatching reinforcements to Terminal F015. 01782_ Slug penetrates Wall. 01783_ Acquired Greatsword. 01785_ Slug penetrates Repair Station. 01788_ Penetrated by Slug. 01794_ Greatsword destroyed. 01796_ G-67 Veteran Flexi-carbon Leg severed. 01798_ Field Propulsion Drive destroyed. 01800_ Greatsword destroyed. 01802_ Slammed into G-67 Veteran. 01810_ Penetrated by Slug. 01812_ Nuclear Reactor explodes. 01812_ G-67 Veteran destroyed. 01813_ Penetrated by Slug. 01819_ Slug penetrates Wall. 01821_ W-25 Informer sends out distress signal. 01826_ O-16 Technician: "IFF HANDSHAKE FAILED. SECURING TERMINAL." [Achievement: 5k Club] Map ----- +----------------------------------------------------+ | ?????????????????????????????????????????????????? | | ?????????????????????????????????????????????????? | | ?????????????????????????????????????????????????? | | ?????????????????????????????????????????????????? | | ?????????????????????????????????????????????????? | | ?????????????????????????????????????????????????? | | ?????????????????????????????????????????????????? | | ?????????????????????????????????????????????????? | | ?????????????????????????????????????????????????? | | ?????????????????????????????????????????????????? | | ?????????????????????????????????????????????????? | | ?????????????????????????????????????????????????? | | ?????????????????????????????????????????????????? | | ?????????????????????????????????????????????????? | | ?????????????????????????????????????????????????? | | ??????????????????????#######????????????????????? | | ??????????????????????# ! #????????????????????? | | ??????????????????????# ????????????????????? | | ??????????????????????+ " ????????????????????? | | ########??????????????? ?????????????????????? | | #??????????????? ?????????????????????? | | """ #???????????????# #?????????????????????? | | """ #???????????????# #?????????????????????? | | """ #???????????????# #?????????????????????? | | !!#????????##+##### +?????????????????????? | | """ #????????# @ #?????????????????????? | | """ #????????# #???????????????####### | | """ #????????# "#???????????????# | | ! !#????????# "#???????????????#""" | | #????????# "#???????????????#"R | | #????????# T#???????????????#""" ! | | #####+##????????# """ "###########?????#""" | | # #????????# """ "# !?????# | | + " #????????# """ "# !! ??????# | | !! # #????????# """p # !! """ ?????# | | [! ## ##????????+ # """ ??????# | | [! ## #?????????# """ # ""????????###### | | ## #?????????# w """ # ??????????????# | | ] ## #?????????# """ ###+################# | | ##### #?????????# """ | | ########### | | | | ########/#########+##""#########+########"###### | | ## ] # ! #?# #??###????# | | ## """""" # #?# """"""" #?????####### | | ## """"" # """" """" #?# """"""" ## | | ## """"""" # """" """" #?# """"""" ## | | ## """"""" # """" """" #?# """"""" ## | | ## =%=*!# """" """" #?# ## ! | | ?# [! # ??""" """?? #????T" ! ???# | +----------------------------------------------------+ Best States ------------- Heat Dissipation 40 Energy Generation 14 Energy Capacity 140 Matter Stores 300 Matter Capacity 300 Sight Range 22 Terrain Scan Density 10 Armor Coverage 225 Evasion (%) 64 Melee Accuracy 6 Recoil Reduction 1 Item Schematics ----------------- None Robot Schematics ------------------ None Fabricated ------------ Nothing Repaired ---------- Nothing Alien Tech Used ----------------- None Achievements -------------- 5k Club Close Call Made in Tau Ceti IV Please Form A Line Challenges ------------ None Game ------ Seed PhasingCompanionCharge Manual? 0 Play Time 00:37:24 Cumulative 5.9 hours Start 2025.10.11 @ 10:02:51 End 2025.10.11 @ 10:37:06 Sessions 1 Manual Loads 0 Difficulty Rogue Special Mode None Game No. 8 Rogue 8 Adventurer 0 Explorer 0 Win Type - Total 0 Types 0/0/0/0/0/0/0/0/0/0 Lore% 4 Gallery% 7 Achievement% 9 Wizard Run 0 Options --------- Layout 1 ASCII 0 Keyboard 1 Movement Arrows Keybinds 0 Fullscreen 1 Font 32/SmallcapsGlow Map View 130x35 Zoom Use 3% Tactical HUD 1 Map Filters NONE Filters NONE Steam 1 RUN: 2c09686f-8ab3-480e-9148-caa94d68a04d